fUST/lending_fUST_20260605
["ID","MTS","AMOUNT","RATE_DAILY","PERIOD"]
[424167611,1780624244000,-500.0,0.00013193,2]
[424167609,1780624244000,-500.0,0.00013193,2]
[424167608,1780624244000,-500.0,0.00013193,2]
[424167610,1780624244000,-500.0,0.00013193,2]
[424167605,1780624244000,-500.0,0.00013193,2]
[424167604,1780624244000,-500.0,0.00013193,2]
[424167606,1780624244000,-500.0,0.00013193,2]
[424167613,1780624244000,-500.0,0.00013193,2]
[424167624,1780624244000,-500.0,0.00013193,2]
[424167623,1780624244000,-500.0,0.00013193,2]
[424167612,1780624244000,-500.0,0.00013193,2]
[424167654,1780624244000,-244.0,0.00019851,2]
[424167614,1780624244000,-500.0,0.00013193,2]
[424167615,1780624244000,-500.0,0.00013193,2]
[424167619,1780624244000,-500.0,0.00013193,2]
[424167617,1780624244000,-500.0,0.00013193,2]
[424167653,1780624244000,-1000.0,0.00019851,2]
[424167635,1780624244000,-500.0,0.00013193,2]
[424167655,1780624244000,-378.53557735,0.00021497,2]
[424167684,1780624244000,-325.23639996,0.0003,120]
[424167686,1780624244000,-170.69330219,0.0003,120]
[424167694,1780624244000,-179.66536753,0.0003,120]
[424167693,1780624244000,-306.78210025,0.0003,120]
[424167702,1780624244000,-1605.80984268,0.000309,120]
[424167703,1780624244000,-175.3543204,0.000309,120]
[424167704,1780624244000,-217.92208056,0.000309,120]
[424167705,1780624244000,-192.03837825,0.000309,120]
[424167701,1780624244000,-282.88740241,0.000309,120]
[424167696,1780624244000,-1536.58817673,0.000309,120]
[424167695,1780624244000,-1017.23030408,0.000309,120]
[424167698,1780624244000,-325.23639996,0.000309,120]
[424167699,1780624244000,-1236.30723861,0.000309,120]
[424167700,1780624244000,-170.69330219,0.000309,120]
[424167706,1780624244000,-308.06223875,0.000309,120]
[424167708,1780624244000,-500.0,0.00031746,120]
[424167707,1780624244000,-306.78210025,0.000309,120]
[424167711,1780624244000,-1536.58817673,0.000318,120]
[424167709,1780624244000,-952.022,0.00031746,120]
[424167710,1780624244000,-1017.23030408,0.000318,120]
[424167712,1780624244000,-187.28692498,0.000318,120]
[424167714,1780624244000,-1236.30723861,0.000318,120]
[424167713,1780624244000,-325.23639996,0.000318,120]
[424167716,1780624244000,-170.69330219,0.000318,120]
[424167717,1780624244000,-282.88740241,0.000318,120]
[424167656,1780624244000,-1693.09,0.00021794,2]
[424167719,1780624244000,-1605.80984268,0.000318,120]
[424167683,1780624244000,-187.28692498,0.0003,120]
[424167685,1780624244000,-1236.30723861,0.0003,120]
[424167697,1780624244000,-187.28692498,0.000309,120]
[424167682,1780624244000,-1536.58817673,0.0003,120]
[424167662,1780624244000,-160.0,0.00023,2]
[424167652,1780624244000,-767.92208879,0.00018621,2]
[424167687,1780624244000,-282.88740241,0.0003,120]
[424167659,1780624244000,-1000.0,0.00021836,10]
[424167658,1780624244000,-2213.795,0.00021794,2]
[424167660,1780624244000,-492.0,0.00021836,10]
[424167657,1780624244000,-3641.877,0.00021794,2]
[424167661,1780624244000,-366.14646627,0.00021918,2]
[424167663,1780624244000,-307.06925777,0.00023431,120]
[424167665,1780624244000,-813.0,0.00023504,120]
[424167666,1780624244000,-1000.0,0.0002402,10]
[424167664,1780624244000,-203.27192,0.00023431,120]
[424167667,1780624244000,-791.0,0.0002402,10]
[424167672,1780624244000,-1000.0,0.00026422,30]
[424167676,1780624244000,-1000.0,0.00029064,30]
[424167678,1780624244000,-431.0,0.00029064,30]
[424167692,1780624244000,-308.06223875,0.0003,120]
[424167690,1780624244000,-217.92208056,0.0003,120]
[424167674,1780624244000,-1000.0,0.00026422,30]
[424167680,1780624244000,-159.0,0.000292,120]
[424167688,1780624244000,-1605.80984268,0.0003,120]
[424167681,1780624244000,-1017.23030408,0.0003,120]
[424167691,1780624244000,-192.03837825,0.0003,120]
[424167669,1780624244000,-380.0,0.00024658,2]
[424167671,1780624244000,-159.0,0.000261,120]
[424167670,1780624244000,-3631.0,0.00024794,2]
[424167668,1780624244000,-500.0,0.00024405,9]
[424167689,1780624244000,-175.3543204,0.0003,120]
[424167776,1780624245000,-355.0,0.00034246,2]
[424167795,1780624245000,-355.0,0.00035616,7]
[424167813,1780624245000,-1357.68387827,0.00035669,15]
[424167809,1780624245000,-1357.68387827,0.00035669,15]
[424167807,1780624245000,-1357.68387827,0.00035669,15]
[424167789,1780624245000,-355.0,0.00035068,5]
[424167793,1780624245000,-355.0,0.00035342,6]
[424167786,1780624245000,-355.0,0.00034794,4]
[424167788,1780624245000,-1536.58817673,0.000348,120]
[424167811,1780624245000,-1357.68387827,0.00035669,15]
[424167780,1780624245000,-500.0,0.00034521,16]
[424167791,1780624245000,-159.0,0.000353,120]
[424167814,1780624245000,-1357.68387827,0.00035669,15]
[424167830,1780624245000,-1357.68387827,0.00035669,15]
[424167799,1780624245000,-225.99868948,0.00035669,15]
[424167805,1780624245000,-1357.68387827,0.00035669,15]
[424167803,1780624245000,-1357.68387827,0.00035669,15]
[424167816,1780624245000,-1357.68387827,0.00035669,15]
[424167818,1780624245000,-1357.68387827,0.00035669,15]
[424167822,1780624245000,-1357.68387827,0.00035669,15]
[424167824,1780624245000,-1357.68387827,0.00035669,15]
[424167826,1780624245000,-1357.68387827,0.00035669,15]
[424167834,1780624245000,-1357.68387827,0.00035669,15]
[424167828,1780624245000,-1357.68387827,0.00035669,15]
[424167832,1780624245000,-1357.68387827,0.00035669,15]
[424167784,1780624245000,-10234.91145822,0.00034742,2]
[424167836,1780624245000,-1357.68387827,0.00035669,15]
[424167801,1780624245000,-1357.68387827,0.00035669,15]
[424167778,1780624245000,-355.0,0.0003452,3]
[424167726,1780624245000,-306.78210025,0.000318,120]
[424167769,1780624245000,-1605.80984268,0.000338,120]
[424167838,1780624245000,-6347.2829841,0.0003567,2]
[424167724,1780624245000,-308.06223875,0.000318,120]
[424167728,1780624245000,-159.0,0.000323,120]
[424167721,1780624245000,-175.3543204,0.000318,120]
[424167723,1780624245000,-192.03837825,0.000318,120]
[424167730,1780624245000,-1017.23030408,0.000328,120]
[424167733,1780624245000,-325.23639996,0.000328,120]
[424167736,1780624245000,-1236.30723861,0.000328,120]
[424167732,1780624245000,-1536.58817673,0.000328,120]
[424167738,1780624245000,-282.88740241,0.000328,120]
[424167740,1780624245000,-1605.80984268,0.000328,120]
[424167742,1780624245000,-175.3543204,0.000328,120]
[424167744,1780624245000,-192.03837825,0.000328,120]
[424167782,1780624245000,-1750.7718219,0.00034657,120]
[424167745,1780624245000,-308.06223875,0.000328,120]
[424167755,1780624245000,-160.0,0.00033199,7]
[424167747,1780624245000,-306.78210025,0.000328,120]
[424167753,1780624245000,-500.0,0.00032877,12]
[424167749,1780624245000,-385.27777918,0.00032876,2]
[424167759,1780624245000,-1017.23030408,0.000338,120]
[424167751,1780624245000,-500.0,0.00032877,10]
[424167761,1780624245000,-1536.58817673,0.000338,120]
[424167763,1780624245000,-325.23639996,0.000338,120]
[424167767,1780624245000,-282.88740241,0.000338,120]
[424167765,1780624245000,-1236.30723861,0.000338,120]
[424167771,1780624245000,-175.3543204,0.000338,120]
[424167773,1780624245000,-308.06223875,0.000338,120]
[424167774,1780624245000,-306.78210025,0.000338,120]
[424167757,1780624245000,-500.0,0.00033425,14]
[424167840,1780624245000,-3378.0586127,0.0003567,2]
[424167797,1780624245000,-500.0,0.00035616,18]
[424167844,1780624245000,-188.1898416,0.0003567,2]
[424167918,1780624245000,-767.92208879,0.0004,30]
[424167907,1780624245000,-1354.89926075,0.0004,30]
[424167902,1780624245000,-452.5930939,0.0004,120]
[424167920,1780624245000,-355.0,0.0004,23]
[424167909,1780624245000,-767.92208879,0.0004,3]
[424167929,1780624245000,-161.113,0.0004,2]
[424167930,1780624245000,-198.477,0.0004,3]
[424167923,1780624245000,-151.0,0.0004,30]
[424167933,1780624245000,-151.0,0.0004,14]
[424167926,1780624245000,-151.0,0.0004,2]
[424167935,1780624245000,-151.9660586,0.0004,14]
[424167925,1780624245000,-151.0,0.0004,2]
[424167939,1780624245000,-767.92208879,0.000401,120]
[424167937,1780624245000,-248.50444484,0.00040046,14]
[424167941,1780624245000,-355.0,0.00040273,24]
[424167943,1780624245000,-355.0,0.00040547,25]
[424167944,1780624245000,-355.0,0.00040821,26]
[424167946,1780624245000,-2000.0,0.000409,120]
[424167948,1780624245000,-168.0,0.00041,120]
[424167958,1780624245000,-400.0,0.00041095,120]
[424167960,1780624245000,-513.90949224,0.00041095,120]
[424167950,1780624245000,-1000.0,0.00041,120]
[424167953,1780624245000,-7140.0,0.00041,120]
[424167956,1780624245000,-400.0,0.00041095,120]
[424167962,1780624245000,-343.85473281,0.00041095,27]
[424167964,1780624245000,-326.3938033,0.000411,120]
[424167968,1780624245000,-326.3938033,0.000411,120]
[424167966,1780624245000,-326.3938033,0.000411,120]
[424167842,1780624245000,-214.6410218,0.0003567,2]
[424167916,1780624245000,-767.92208879,0.0004,10]
[424167900,1780624245000,-62543.63256802,0.0004,120]
[424167820,1780624245000,-1357.68387827,0.00035669,15]
[424167912,1780624245000,-767.92208879,0.0004,10]
[424167846,1780624245000,-1536.58817673,0.000358,120]
[424167848,1780624245000,-355.0,0.0003589,8]
[424167850,1780624245000,-355.0,0.00036164,9]
[424167861,1780624245000,-355.0,0.0003726,13]
[424167863,1780624245000,-355.0,0.00037534,14]
[424167865,1780624245000,-355.0,0.00037808,15]
[424167867,1780624245000,-1536.58817673,0.00038,120]
[424167869,1780624245000,-355.0,0.00038082,16]
[424167857,1780624245000,-355.0,0.00036986,12]
[424167914,1780624245000,-767.92208879,0.0004,10]
[424167855,1780624245000,-1536.58817673,0.000369,120]
[424167853,1780624245000,-355.0,0.00036712,11]
[424167859,1780624245000,-280.661,0.00037197,47]
[424167871,1780624245000,-355.0,0.00038356,17]
[424167851,1780624245000,-355.0,0.00036438,10]
[424167874,1780624245000,-159.0,0.000384,120]
[424167872,1780624245000,-200.0,0.00038356,2]
[424167911,1780624245000,-160.0,0.0004,3]
[424167898,1780624245000,-986.0,0.0004,120]
[424167894,1780624245000,-14191.96282772,0.0004,120]
[424167896,1780624245000,-324059.50435137,0.0004,120]
[424167890,1780624245000,-355.0,0.00039726,22]
[424167886,1780624245000,-355.0,0.00039178,20]
[424167892,1780624245000,-1004.8,0.000398,120]
[424167882,1780624245000,-355.0,0.00038904,19]
[424167884,1780624245000,-1536.58817673,0.000391,120]
[424167888,1780624245000,-355.0,0.00039452,21]
[424167880,1780624245000,-162.71857414,0.000388,7]
[424167878,1780624245000,-455.73151288,0.000388,2]
[424167876,1780624245000,-355.0,0.0003863,18]
[424167976,1780624246000,-159.0,0.000415,120]
[424167999,1780624246000,-12016.0,0.00042,120]
[424167996,1780624246000,-600.0,0.00042,120]
[424167994,1780624246000,-212.47,0.00042,120]
[424167992,1780624246000,-212.47,0.00042,30]
[424167998,1780624246000,-40000.0,0.00042,120]
[424167979,1780624246000,-181.12588301,0.00041524,5]
[424167970,1780624246000,-326.39,0.000411,120]
[424167972,1780624246000,-767.92208879,0.000413,120]
[424167990,1780624246000,-212.79,0.00042,60]
[424167983,1780624246000,-1000.0,0.00041999,120]
[424167985,1780624246000,-298.52066791,0.00042,60]
[424167988,1780624246000,-474.57,0.00042,60]
[424167981,1780624246000,-2000.0,0.000419,120]
[424168003,1780624246000,-16688.85737959,0.000424,120]
[424167974,1780624246000,-400.0,0.000414,120]
[424168001,1780624246000,-7140.0,0.00042,120]
[424168025,1780624246000,-181.379086,0.00043562,120]
[424168015,1780624246000,-274.29965576,0.00043,120]
[424168117,1780624246000,-3124.38561678,0.000439,120]
[424168122,1780624246000,-13694.95251225,0.000439,120]
[424168035,1780624246000,-15218.1178605,0.000439,120]
[424168032,1780624246000,-35079.861855,0.000439,120]
[424168030,1780624246000,-2000.0,0.000439,120]
[424168013,1780624246000,-2000.0,0.00043,120]
[424168028,1780624246000,-369.03,0.00043836,60]
[424168120,1780624246000,-3683.07639474,0.000439,120]
[424168027,1780624246000,-516.96519308,0.000438,120]
[424168021,1780624246000,-28002.65496513,0.000435,120]
[424168019,1780624246000,-2295.6,0.000435,120]
[424168017,1780624246000,-21508.75,0.000435,120]
[424168009,1780624246000,-2000.0,0.000429,120]
[424168011,1780624246000,-506.78,0.00043,120]
[424168005,1780624246000,-168.0,0.000425,120]
[424168007,1780624246000,-4183.77550873,0.000427,120]
[424168023,1780624246000,-499889.16568974,0.00043562,120]
[424168480,1780625239000,-1099.7239414,0.00012993,2]
[424168479,1780625239000,-1099.7239414,0.00012993,2]
[424168481,1780625239000,-1099.7239414,0.00012993,2]
[424168476,1780625239000,-153.48,0.00012,2]
[424168477,1780625239000,-1493.03756732,0.00012894,2]
[424168483,1780625239000,-1099.7239414,0.00012993,2]
[424168478,1780625239000,-158.19908263,0.00012993,2]
[424168484,1780625239000,-1099.7239414,0.00012993,2]
[424168486,1780625239000,-1099.7239414,0.00012993,2]
[424168485,1780625239000,-1099.7239414,0.00012993,2]
[424168487,1780625239000,-1099.7239414,0.00012993,2]
[424168489,1780625239000,-500.0,0.00012993,2]
[424168488,1780625239000,-1099.7239414,0.00012993,2]
[424168482,1780625239000,-1099.7239414,0.00012993,2]
[424168490,1780625240000,-500.0,0.00012993,2]
[424168491,1780625240000,-1099.7239414,0.00012993,2]
[424168493,1780625240000,-531.31814238,0.00012993,2]
[424168492,1780625240000,-370.62968839,0.00012993,2]
[424168494,1780625240000,-1099.7239414,0.00012993,2]
[424168495,1780625240000,-1099.7239414,0.00012993,2]
[424168497,1780625240000,-1099.7239414,0.00012993,2]
[424168499,1780625240000,-1099.7239414,0.00012993,2]
[424168498,1780625240000,-1099.7239414,0.00012993,2]
[424168496,1780625240000,-1099.7239414,0.00012993,2]
[424168500,1780625240000,-1099.7239414,0.00012993,2]
[424168502,1780625240000,-1099.7239414,0.00012993,2]
[424168503,1780625240000,-1099.7239414,0.00012993,2]
[424168501,1780625240000,-1099.7239414,0.00012993,2]
[424168504,1780625240000,-1099.7239414,0.00012993,2]
[424168506,1780625240000,-1099.7239414,0.00012993,2]
[424168505,1780625240000,-1099.7239414,0.00012993,2]
[424168507,1780625240000,-1099.7239414,0.00012993,2]
[424168508,1780625240000,-1099.7239414,0.00012993,2]
[424168510,1780625240000,-805255.49526327,0.00012994,2]
[424168509,1780625240000,-1099.7239414,0.00012993,2]
[424168541,1780625432000,-3142.00522956,0.00014745,2]
[424168593,1780625439000,-1148.52844688,0.00014745,2]
[424169062,1780625444000,-185.0,0.00027794,2]
[424169065,1780625444000,-6435.67774579,0.000332,14]
[424169066,1780625444000,-38804.11457526,0.000332,117]
[424169060,1780625444000,-185.0,0.00024794,2]
[424169061,1780625444000,-376.1164424,0.00027066,2]
[424169064,1780625444000,-185.0,0.00030794,2]
[424169059,1780625444000,-160.0,0.00023,2]
[424169068,1780625444000,-433.0707201,0.00034256,2]
[424169056,1780625444000,-150.138,0.00021794,2]
[424169058,1780625444000,-447.486,0.00021794,2]
[424169049,1780625444000,-433.0707201,0.00014894,2]
[424169057,1780625444000,-190.187,0.00021794,2]
[424169067,1780625444000,-185.0,0.00033794,2]
[424169053,1780625444000,-1013.109915,0.00021,2]
[424169050,1780625444000,-168.396,0.00019322,2]
[424169052,1780625444000,-744.04846698,0.00020999,2]
[424169055,1780625444000,-150.138,0.00021794,2]
[424169048,1780625444000,-709.46632356,0.00014745,2]
[424169069,1780625444000,-185.0,0.00036794,2]
[424169070,1780625444000,-1132.30428339,0.000389,2]
[424169054,1780625444000,-433.0707201,0.00021348,2]
[424169074,1780625444000,-802.79847722,0.00038999,15]
[424169073,1780625444000,-802.79847722,0.00038999,15]
[424169089,1780625444000,-802.79847722,0.00038999,15]
[424169092,1780625444000,-592563.80958309,0.00039,2]
[424169091,1780625444000,-802.79847722,0.00038999,15]
[424169088,1780625444000,-802.79847722,0.00038999,15]
[424169090,1780625444000,-802.79847722,0.00038999,15]
[424169087,1780625444000,-802.79847722,0.00038999,15]
[424169086,1780625444000,-802.79847722,0.00038999,15]
[424169085,1780625444000,-802.79847722,0.00038999,15]
[424169083,1780625444000,-802.79847722,0.00038999,15]
[424169063,1780625444000,-433.0707201,0.00027802,2]
[424169076,1780625444000,-802.79847722,0.00038999,15]
[424169081,1780625444000,-802.79847722,0.00038999,15]
[424169079,1780625444000,-802.79847722,0.00038999,15]
[424169080,1780625444000,-802.79847722,0.00038999,15]
[424169071,1780625444000,-152.2921876,0.00038998,15]
[424169082,1780625444000,-802.79847722,0.00038999,15]
[424169075,1780625444000,-802.79847722,0.00038999,15]
[424169077,1780625444000,-802.79847722,0.00038999,15]
[424169078,1780625444000,-802.79847722,0.00038999,15]
[424169084,1780625444000,-802.79847722,0.00038999,15]
[424169072,1780625444000,-237.55536756,0.00038999,15]
[424169119,1780625446000,-3845.09399851,0.00039,2]
[424169127,1780625447000,-920.38191261,0.00039,2]
[424169346,1780626122000,159.10137172,0.00023534,30]
[424169350,1780626131000,469.22362928,0.00023534,120]
[424169360,1780626143000,160.53820659,0.00023534,45]
[424169442,1780626631000,-3115.99286867,0.00012767,2]
[424169440,1780626631000,-450.58897485,0.00012513,2]
[424169441,1780626631000,-2280.49781714,0.00012639,2]
[424169447,1780626641000,-1884.00713133,0.00012767,2]
[424169450,1780626641000,-12887.03247843,0.00023534,2]
[424169456,1780626641000,-1000.0,0.00024499,30]
[424169449,1780626641000,-168.396,0.00023534,4]
[424169453,1780626641000,-150.95924668,0.00023534,2]
[424169451,1780626641000,-891.9184298,0.00023534,2]
[424169454,1780626641000,-210.545,0.00024022,2]
[424169452,1780626641000,-7255.3096411,0.00023534,2]
[424169448,1780626641000,-2024.0,0.00019,2]
[424169455,1780626641000,-444.0,0.00024022,2]
[424169458,1780626641000,-412.0,0.00028,120]
[424169467,1780626641000,-500.0,0.00033199,7]
[424169457,1780626641000,-185.0,0.00027022,2]
[424169465,1780626641000,-185.0,0.00033022,2]
[424169470,1780626641000,-262.0624995,0.000332,117]
[424169469,1780626641000,-17791.76535823,0.000332,117]
[424169460,1780626641000,-160.0,0.00029957,2]
[424169464,1780626641000,-321.62348632,0.00033,120]
[424169463,1780626641000,-1000.0,0.00032,120]
[424169466,1780626641000,-500.0,0.00033199,7]
[424169462,1780626641000,-185.0,0.00030022,2]
[424169461,1780626641000,-500.0,0.0003,120]
[424169459,1780626641000,-430.33896236,0.00028,120]
[424169468,1780626641000,-216.39939461,0.00033199,7]
[424169936,1780626646000,-5173.10297279,0.000332,117]
[424169942,1780626646000,-2509.7283762,0.000332,117]
[424169938,1780626646000,-6518.65790983,0.000332,117]
[424169932,1780626646000,-300.0,0.00024004,10]
[424169934,1780626646000,-300.0,0.00024004,10]
[424174705,1780626984000,161.0,0.0002,120]
[424174710,1780627236000,-1125.76450508,8.527e-05,2]
[424174711,1780627240000,-500.00170171,8.527e-05,2]
[424174712,1780627249000,-336.57899379,8.527e-05,2]
[424174713,1780627251000,-297.6729855,8.527e-05,2]
[424174714,1780627253000,-177.19567882,8.442e-05,2]
[424174718,1780627265000,-450.43058049,8.358e-05,2]
[424174719,1780627281000,-500.0,8.358e-05,2]
[424174720,1780627283000,-372.37374069,8.358e-05,2]
[424174721,1780627285000,-310.36452317,8.358e-05,2]
[424174722,1780627287000,-258.83556483,8.358e-05,2]
[424174724,1780627288000,-139.40170746,8.442e-05,2]
[424174723,1780627288000,-173.72927182,8.358e-05,2]
[424174726,1780627311000,-293.09379332,8.358e-05,2]
[424174727,1780627321000,-397.85125961,8.358e-05,2]
[424174728,1780627323000,-231.52176973,8.358e-05,2]
[424174729,1780627325000,-156.9175465,8.358e-05,2]
[424174734,1780627341000,-96.15233764,8.442e-05,2]
[424174733,1780627341000,-420.61563084,8.358e-05,2]
[424174735,1780627345000,-580.29848,8.442e-05,2]
[424174736,1780627347000,-426.15119389,8.442e-05,2]
[424174737,1780627348000,-500.00364558,8.442e-05,2]
[424174739,1780627371000,-403.28815122,8.358e-05,2]
[424174741,1780627413000,5000.0,8.205e-05,2]
[424174743,1780627435000,5000.0,8.205e-05,2]
[424174744,1780627444000,5000.0,8.205e-05,2]
[424174745,1780627458000,5000.0,8.205e-05,2]
[424174746,1780627466000,390.30517482,8.205e-05,2]
[424174747,1780627481000,5000.0,8.205e-05,2]
[424174748,1780627503000,5000.0,8.205e-05,2]
[424174750,1780627525000,5000.0,8.205e-05,2]
[424174754,1780627547000,5000.0,8.205e-05,2]
[424174776,1780627700000,155.0,8.203e-05,2]
[424174777,1780627762000,5000.0,8.205e-05,2]
[424174778,1780627784000,5000.0,8.205e-05,2]
[424174779,1780627806000,5000.0,8.205e-05,2]
[424174780,1780627828000,5000.0,8.205e-05,2]
[424174858,1780627832000,-151.55,0.000176,2]
[424174854,1780627832000,-708.77708183,0.00016635,2]
[424174837,1780627832000,-565.21241106,8.613e-05,2]
[424174852,1780627832000,-151.55,0.000158,2]
[424174851,1780627832000,-151.55,0.000148,2]
[424174848,1780627832000,-151.55,0.000139,2]
[424174847,1780627832000,-151.55,0.000129,2]
[424174845,1780627832000,-151.49,0.00012,2]
[424174843,1780627832000,-474.78758894,8.613e-05,2]
[424174856,1780627832000,-151.55,0.000167,2]
[424174835,1780627832000,-500.00364558,8.358e-05,2]
[424174862,1780627832000,-768.06331103,0.00018916,2]
[424174864,1780627832000,-170.477,0.00019177,2]
[424174870,1780627832000,-151.55,0.000214,2]
[424174885,1780627832000,-470.48785013,0.00021918,2]
[424174881,1780627832000,-156.82928338,0.00021918,2]
[424174883,1780627832000,-313.65856675,0.00021918,2]
[424174879,1780627832000,-2329.0,0.00021917,2]
[424174876,1780627832000,-192.4058795,0.000218,2]
[424174888,1780627832000,-83.8059296,0.00022164,2]
[424174860,1780627832000,-151.55,0.000186,2]
[424174867,1780627832000,-151.55,0.000195,2]
[424174872,1780627832000,-73.48100068,0.00021444,2]
[424174869,1780627832000,-151.55,0.000205,2]
[424174874,1780627832000,-380.80161928,0.00021444,2]
[424175032,1780627838000,-156.0,0.00023387,120]
[424175055,1780627838000,-156.0,0.00024387,120]
[424175053,1780627838000,-161.0,0.000238,120]
[424175049,1780627838000,-307.06925777,0.00023534,120]
[424175051,1780627838000,-320.04380225,0.00023534,120]
[424175045,1780627838000,-318.55968363,0.00023534,120]
[424175038,1780627838000,-500.0,0.00023533,2]
[424175030,1780627838000,-15.83139761,0.00023032,2]
[424175047,1780627838000,-415.70421042,0.00023534,120]
[424175034,1780627838000,-152.0,0.00023387,120]
[424175036,1780627838000,-172.0,0.00023387,120]
[424175007,1780627838000,-160.0,0.00023,2]
[424175042,1780627838000,-830.44374858,0.00023534,120]
[424175009,1780627838000,-154.28566779,0.00023032,2]
[424175003,1780627838000,-137.54919473,0.000226,2]
[424175005,1780627838000,-281.44678123,0.000226,2]
[424175057,1780627838000,-152.0,0.00024387,120]
[424175001,1780627838000,-136.31072525,0.000226,2]
[424174997,1780627838000,-426.49980271,0.00022478,30]
[424174999,1780627838000,-573.50019729,0.00022478,30]
[424174995,1780627838000,-151.55,0.000223,2]
[424174993,1780627838000,-74.71498593,0.00022164,2]
[424175040,1780627838000,-503.67290837,0.00023533,2]
[424175059,1780627838000,-172.02639194,0.00024387,120]
[424175044,1780627838000,-203.27449723,0.00023534,120]
[424175066,1780627838000,-284.83494157,0.00024968,2]
[424175104,1780627838000,-274.91813661,0.00025242,2]
[424175101,1780627838000,-5292.40124137,0.00025224,2]
[424175085,1780627838000,-203.86822476,0.00024968,2]
[424175087,1780627838000,-201.09034158,0.00024968,2]
[424175099,1780627838000,-295.7929329,0.00025143,2]
[424175089,1780627838000,-159.22988379,0.00024968,2]
[424175083,1780627838000,-151.5,0.00024968,2]
[424175081,1780627838000,-151.5,0.00024968,2]
[424175095,1780627838000,-500.0,0.0002505,2]
[424175093,1780627838000,-175.82283691,0.0002505,2]
[424175079,1780627838000,-222.96957892,0.00024968,2]
[424175103,1780627838000,-500.0,0.00025242,2]
[424175091,1780627838000,-154.60790025,0.00024968,2]
[424175097,1780627838000,-558.71290146,0.0002505,2]
[424175060,1780627838000,-156.64523267,0.00024968,2]
[424175062,1780627838000,-285.65803629,0.00024968,2]
[424175072,1780627838000,-217.80977212,0.00024968,2]
[424175074,1780627838000,-151.5,0.00024968,2]
[424175064,1780627838000,-206.44205531,0.00024968,2]
[424175106,1780627838000,-955875.01033448,0.00025243,2]
[424175068,1780627838000,-151.5,0.00024968,2]
[424175076,1780627838000,-151.5,0.00024968,2]
[424175078,1780627838000,-200.46598773,0.00024968,2]
[424175070,1780627838000,-151.5,0.00024968,2]
[424175113,1780627839000,-2557.71450152,0.00025243,2]
[424175111,1780627839000,-1529.12240313,0.00025243,2]
[424175109,1780627839000,-2698.15832941,0.00025243,2]
[424175584,1780627843000,-864.01084809,0.00025243,2]
[424175588,1780627843000,-2080.707,0.00025324,2]
[424175590,1780627843000,-335.823,0.00025324,2]
[424175594,1780627843000,-444.0,0.00025324,2]
[424175586,1780627843000,-540.34628286,0.00025299,2]
[424175592,1780627843000,-185.0,0.00025324,2]
[424175596,1780627843000,-156.0,0.00025387,120]
[424175599,1780627843000,-37242.11286905,0.00025444,2]
[424175623,1780627843000,-2964.69468935,0.00025444,2]
[424175627,1780627843000,-2386.89478354,0.00025444,2]
[424175630,1780627843000,-622.06039237,0.00025444,2]
[424175598,1780627843000,-152.0,0.00025387,120]
[424175625,1780627843000,-1057.23547122,0.00025444,2]
[424175970,1780627846000,-3845.09744663,0.00025444,2]
[424175962,1780627846000,-645.24515374,0.00025199,4]
[424175964,1780627846000,-10602.09908329,0.00025444,2]
[424177200,1780628000000,155.0,8.203e-05,2]
[424177212,1780628492000,-152.0,9.801e-05,2]
[424177328,1780629041000,-429.60097125,9.228e-05,2]
[424177350,1780629041000,-300.0,0.00018263,2]
[424177355,1780629041000,-300.0,0.00018263,2]
[424177352,1780629041000,-300.0,0.00018263,2]
[424177351,1780629041000,-300.0,0.00018263,2]
[424177354,1780629041000,-300.0,0.00018263,2]
[424177359,1780629041000,-300.0,0.00018263,2]
[424177358,1780629041000,-300.0,0.00018263,2]
[424177356,1780629041000,-300.0,0.00018263,2]